fUST/lending_fUST_20250602
["ID","MTS","AMOUNT","RATE_DAILY","PERIOD"]
[363702447,1748826640992,-2807.9443012,0.00018934,2]
[363702449,1748826641002,-1200.0,0.00018971,2]
[363702451,1748826641012,-377.45,0.00018973,2]
[363702454,1748826641022,-532.98731685,0.00019037,2]
[363702455,1748826641032,-430.0,0.00019053,2]
[363702458,1748826641044,-430.0,0.00019053,2]
[363702460,1748826641053,-430.0,0.00019053,2]
[363702462,1748826641063,-430.0,0.00019053,2]
[363702464,1748826641072,-430.0,0.00019053,2]
[363702466,1748826641081,-430.0,0.00019053,2]
[363702467,1748826641090,-430.0,0.00019053,2]
[363702469,1748826641100,-2278.2,0.00019119,2]
[363702471,1748826641109,-2807.9443012,0.00019141,2]
[363702473,1748826641118,-160.0,0.00019169,2]
[363702475,1748826641128,-229.3709046,0.00019169,2]
[363702477,1748826641138,-160.0,0.00019169,2]
[363702479,1748826641147,-160.0,0.00019169,2]
[363702481,1748826641157,-423.51412927,0.00019169,2]
[363702483,1748826641167,-160.0,0.00019169,2]
[363702485,1748826641180,-12666.87825251,0.00019169,2]
[363702487,1748826641190,-212.80060342,0.00019169,2]
[363702489,1748826641200,-160.0,0.00019169,2]
[363702491,1748826641211,-5000.0,0.000193,3]
[363702493,1748826641221,-430.0,0.00019327,2]
[363702495,1748826641230,-430.0,0.00019327,2]
[363702497,1748826641240,-430.0,0.00019327,2]
[363702499,1748826641250,-430.0,0.00019327,2]
[363702501,1748826641259,-430.0,0.00019327,2]
[363702503,1748826641269,-385.01281503,0.00019327,2]
[363702505,1748826641278,-430.0,0.00019327,2]
[363702507,1748826641288,-2807.9443012,0.00019348,2]
[363702509,1748826641298,-2807.9443012,0.00019555,2]
[363702511,1748826641307,-349.482,0.00019597,2]
[363702513,1748826641317,-172.918,0.00019597,2]
[363702515,1748826641327,-430.0,0.00019601,2]
[363702517,1748826641336,-430.0,0.00019601,2]
[363702519,1748826641347,-449.47,0.00019601,2]
[363702521,1748826641356,-187.48733768,0.00019601,2]
[363702523,1748826641366,-430.0,0.00019601,2]
[363702525,1748826641376,-430.0,0.00019601,2]
[363702527,1748826641386,-2807.9443012,0.00019762,2]
[363702529,1748826641396,-240.75490911,0.00019798,2]
[363702531,1748826641406,-205.0,0.00019803,2]
[363702533,1748826641415,-2652.7,0.0001986,2]
[363702535,1748826641425,-2652.7,0.0001986,2]
[363702537,1748826641436,-2652.7,0.0001986,2]
[363702538,1748826641446,-2652.7,0.0001986,2]
[363702540,1748826641455,-430.0,0.00019875,2]
[363702542,1748826641466,-430.0,0.00019875,2]
[363702544,1748826641476,-430.0,0.00019875,2]
[363702546,1748826641486,-430.0,0.00019875,2]
[363702548,1748826641496,-292.18079892,0.000199,2]
[363702550,1748826641506,-3037.6,0.00019951,2]
[363702552,1748826641516,-2807.9443012,0.00019969,2]
[363702554,1748826641527,-1200.0,0.00020067,2]
[363702556,1748826641537,-407.2,0.00020149,2]
[363702558,1748826641547,-430.0,0.00020149,2]
[363702560,1748826641556,-430.0,0.00020149,2]
[363702562,1748826641566,-430.0,0.00020149,2]
[363702564,1748826641575,-2807.9443012,0.00020176,2]
[363702566,1748826641587,-168.28931861,0.00020184,2]
[363702568,1748826641597,-268.682003,0.00020187,2]
[363702570,1748826641606,-2807.9443012,0.00020383,3]
[363702572,1748826641616,-430.0,0.00020423,2]
[363702574,1748826641625,-430.0,0.00020423,2]
[363702576,1748826641635,-430.0,0.00020423,2]
[363702578,1748826641644,-480.69,0.0002058,3]
[363702580,1748826641654,-2807.9443012,0.0002059,3]
[363702582,1748826641663,-9308.72856313,0.00020696,2]
[363702584,1748826641673,-560.45,0.00020697,2]
[363702586,1748826641683,-430.0,0.00020697,2]
[363702588,1748826641692,-430.0,0.00020697,2]
[363702590,1748826641702,-206.95,0.000207,2]
[363702592,1748826641712,-3797.0,0.00020782,2]
[363702594,1748826641721,-2807.9443012,0.00020797,4]
[363702596,1748826641731,-430.0,0.00020971,2]
[363702598,1748826641740,-430.0,0.00020971,2]
[363702600,1748826641750,-640.9,0.00020993,3]
[363702602,1748826641759,-3000.0,0.00021,2]
[363702604,1748826641768,-36021.41649,0.00021003,2]
[363702606,1748826641777,-2807.9443012,0.00021003,4]
[363702607,1748826641787,-3000.0,0.0002101,2]
[363702610,1748826641797,-3000.0,0.0002102,2]
[363702611,1748826641808,-3000.0,0.0002103,2]
[363702613,1748826641817,-3000.0,0.0002104,2]
[363702615,1748826641827,-3000.0,0.0002105,2]
[363702617,1748826641838,-160.23,0.0002105,3]
[363702619,1748826641847,-3000.0,0.0002106,2]
[363702621,1748826641857,-320.45,0.0002106,3]
[363702623,1748826641867,-3000.0,0.0002107,2]
[363702625,1748826641877,-3000.0,0.0002108,2]
[363702627,1748826641887,-3000.0,0.0002109,2]
[363702629,1748826641897,-3000.0,0.000211,2]
[363702631,1748826641907,-2171.0,0.000211,2]
[363702633,1748826641917,-405.29,0.000211,2]
[363702635,1748826641927,-3000.0,0.0002111,2]
[363702637,1748826641937,-3000.0,0.0002112,2]
[363702639,1748826641947,-3000.0,0.0002113,2]
[363702641,1748826641961,-3000.0,0.0002114,2]
[363702643,1748826641970,-3000.0,0.0002115,2]
[363702645,1748826641981,-3000.0,0.0002116,2]
[363702647,1748826641991,-1200.0,0.00021163,2]
[363702649,1748826642002,-3000.0,0.0002117,2]
[363702651,1748826642011,-3000.0,0.0002118,2]
[363702653,1748826642020,-5552.426051,0.0002119,2]
[363702655,1748826642030,-2807.9443012,0.0002121,4]
[363702657,1748826642039,-244.94,0.00021245,2]
[363702659,1748826642050,-430.0,0.00021245,2]
[363702661,1748826642059,-2807.9443012,0.00021417,5]
[363702663,1748826642068,-9308.72856309,0.00021447,2]
[363702665,1748826642077,-430.0,0.00021519,2]
[363702667,1748826642086,-500.0,0.0002155,2]
[363702668,1748826642096,-500.0,0.0002155,2]
[363702670,1748826642106,-272.15343245,0.0002155,2]
[363702672,1748826642115,-500.0,0.0002155,2]
[363702674,1748826642125,-578.41688806,0.0002155,2]
[363702676,1748826642135,-501.91113092,0.0002155,2]
[363702678,1748826642145,-500.42226515,0.0002155,2]
[363702680,1748826642154,-500.0,0.0002155,2]
[363702682,1748826642164,-500.0,0.0002155,2]
[363702684,1748826642173,-239.8002961,0.0002155,2]
[363702686,1748826642183,-4556.39,0.00021613,2]
[363702688,1748826642192,-2807.9443012,0.00021624,5]
[363702690,1748826642202,-500.0,0.00021675,2]
[363702692,1748826642212,-250.0,0.00021789,2]
[363702694,1748826642221,-175.92553596,0.00021793,2]
[363702696,1748826642231,-2807.9443012,0.00021831,6]
[363702698,1748826642240,-370.65929463,0.00021846,2]
[363702700,1748826642250,-5000.0,0.00021874,2]
[363702702,1748826642259,-500.0,0.00021875,2]
[363702704,1748826642269,-500.0,0.00021875,2]
[363702706,1748826642279,-500.0,0.00021875,2]
[363702708,1748826642288,-500.0,0.00021875,2]
[363702710,1748826642298,-500.0,0.00021875,2]
[363702712,1748826642307,-320.1009062,0.00021875,2]
[363702714,1748826642316,-500.0,0.00021875,2]
[363702715,1748826642325,-649.21402904,0.00021875,2]
[363702718,1748826642336,-500.0,0.00021875,2]
[363702720,1748826642346,-435.1065346,0.00021875,2]
[363702722,1748826642356,-150.0,0.00021918,2]
[363702724,1748826642366,-611.01090483,0.00021918,2]
[363702726,1748826642376,-728.7564356,0.00021973,2]
[363702728,1748826642389,-500.0,0.00022,2]
[363702730,1748826642399,-171.0,0.00022,2]
[363702732,1748826642408,-214.0,0.00022,2]
[363702734,1748826642418,-2807.9443012,0.00022038,6]
[363702736,1748826642427,-206.95,0.000221,7]
[363702738,1748826642437,-214.0,0.00022192,7]
[363702740,1748826642447,-9308.72856309,0.00022198,2]
[363702742,1748826642456,-2807.9443012,0.00022245,6]
[363702744,1748826642465,-1200.0,0.00022259,2]
[363702746,1748826642475,-2171.0,0.000223,2]
[363702748,1748826642485,-405.29,0.000223,7]
[363702750,1748826642495,-1281.8,0.00022363,3]
[363702752,1748826642505,-185.45070785,0.00022384,2]
[363702754,1748826642515,-320.46,0.0002242,3]
[363702756,1748826642525,-640.9,0.0002243,3]
[363702758,1748826642534,-5315.79,0.00022444,2]
[363702759,1748826642543,-2807.9443012,0.00022452,7]
[363702761,1748826642553,-207.4,0.00022578,2]
[363702763,1748826642563,-151.0,0.00022578,2]
[363702765,1748826642572,-154.67873888,0.00022578,2]
[363702767,1748826642581,-2000.0,0.00022578,2]
[363702769,1748826642590,-300.0,0.00022578,2]
[363702771,1748826642600,-2000.0,0.00022578,2]
[363702773,1748826642609,-300.0,0.00022578,2]
[363702775,1748826642618,-2000.0,0.00022578,2]
[363702777,1748826642628,-300.0,0.00022578,2]
[363702779,1748826642637,-2000.0,0.00022578,2]
[363702781,1748826642646,-300.0,0.00022578,2]
[363702783,1748826642656,-300.0,0.00022578,2]
[363702785,1748826642665,-2000.0,0.00022578,2]
[363702787,1748826642674,-2000.0,0.00022578,2]
[363702789,1748826642691,-5000.0,0.00022578,2]
[363702790,1748826642708,-300.0,0.00022578,2]
[363702792,1748826642717,-2000.0,0.00022578,2]
[363702794,1748826642726,-2000.0,0.00022578,2]
[363702796,1748826642736,-300.0,0.00022578,2]
[363702798,1748826642745,-2000.0,0.00022578,2]
[363702800,1748826642755,-300.0,0.00022578,2]
[363702802,1748826642764,-2000.0,0.00022578,2]
[363702804,1748826642773,-300.0,0.00022578,2]
[363702806,1748826642783,-2000.0,0.00022578,2]
[363702808,1748826642793,-300.0,0.00022578,2]
[363702810,1748826642804,-2000.0,0.00022578,2]
[363702812,1748826642814,-300.0,0.00022578,2]
[363702814,1748826642823,-1215.5802251,0.00022578,2]
[363702816,1748826642832,-2000.0,0.00022578,2]
[363702818,1748826642842,-300.0,0.00022578,2]
[363702820,1748826642852,-2000.0,0.00022578,2]
[363702822,1748826642861,-300.0,0.00022578,2]
[363702824,1748826642870,-300.0,0.00022578,2]
[363702826,1748826642880,-181.41279037,0.00022578,2]
[363702828,1748826642891,-300.0,0.00022578,2]
[363702830,1748826642901,-405.0,0.00022648,2]
[363702832,1748826642910,-2807.9443012,0.00022659,7]
[363702834,1748826642920,-185.45070785,0.00022685,2]
[363702835,1748826642929,-600.0,0.00022848,2]
[363702837,1748826642939,-2807.9443012,0.00022866,8]
[363702838,1748826642948,-364.3782178,0.00022932,2]
[363702839,1748826642958,-9308.72856309,0.00022949,2]
[363702840,1748826642970,-185.46833955,0.00022986,2]
[363702841,1748826642979,-185.45070785,0.00022986,2]
[363702842,1748826642991,-185.46833955,0.00022986,2]
[363702843,1748826643000,-61000.0,0.00023,4]
[363702844,1748826643012,-151.0,0.00023,8]
[363702845,1748826643023,-10000.0,0.00023,2]
[363702846,1748826643032,-423.51412927,0.00023,3]
[363702847,1748826643044,-190546.60536138,0.00023,30]
[363702848,1748826643055,-214.0,0.00023014,7]
[363702849,1748826643065,-8534.10134727,0.00023026,3]
[363702850,1748826643076,-158.4848398,0.00023068,2]
[363702852,1748826643086,-176.4890519,0.00023068,2]
[363702853,1748826643095,-572.3927371,0.00023068,2]
[363702854,1748826643106,-153.0,0.00023068,2]
[363702855,1748826643117,-176.4890519,0.00023068,2]
[363702856,1748826643129,-176.4890519,0.00023068,2]
[363702857,1748826643139,-176.0082059,0.00023068,2]
[363702858,1748826643149,-176.4890519,0.00023068,2]
[363702859,1748826643159,-1144.7854742,0.00023068,2]
[363702860,1748826643169,-158.4848398,0.00023068,2]
[363702861,1748826643179,-2807.9443012,0.00023072,8]
[363702862,1748826643189,-751.56940287,0.00023086,2]
[363702865,1748826643199,-272.80097017,0.00023126,2]
[363702867,1748826643209,-5000.0,0.00023126,2]
[363702868,1748826643219,-185.45070785,0.0002326,2]
[363702869,1748826643229,-6075.19,0.00023276,2]
[363702870,1748826643240,-2807.9443012,0.00023279,8]
[363702871,1748826643250,-151.0,0.000233,5]
[363702873,1748826643260,-151.0,0.000233,6]
[363702874,1748826643270,-175.527556,0.00023323,7]
[363702875,1748826643279,-2162.844545,0.00023324,3]
[363702876,1748826643289,-1200.0,0.00023355,2]
[363702877,1748826643299,-206.95,0.000234,7]
[363702878,1748826643309,-151.0,0.000234,5]
[363702879,1748826643319,-12666.87825251,0.000234,3]
[363702880,1748826643329,-160.0,0.000234,3]
[363702881,1748826643338,-2000.0,0.00023479,2]
[363702882,1748826643348,-156.17876976,0.00023479,2]
[363702883,1748826643358,-2807.9443012,0.00023486,9]
[363702884,1748826643368,-2171.0,0.000235,2]
[363702885,1748826643378,-405.29,0.000235,7]
[363702886,1748826643388,-800.0,0.00023556,2]
[363702887,1748826643398,-800.0,0.00023572,2]
[363702888,1748826643408,-8836.68,0.0002358,7]
[363702889,1748826643418,-212.80060342,0.000236,3]
[363702890,1748826643427,-160.0,0.000236,3]
[363702891,1748826643437,-151.0,0.000236,6]
[363702892,1748826643446,-960.0,0.0002364,2]
[363702893,1748826643456,-708.0,0.0002364,2]
[363702894,1748826643467,-2226.0,0.0002364,2]
[363702896,1748826643584,-5000.0,0.00023674,2]
[363702897,1748826643594,-500.0,0.00023689,3]
[363702898,1748826643604,-2807.9443012,0.00023693,9]
[363702899,1748826643614,-151.0,0.000237,6]
[363702900,1748826643623,-151.0,0.000237,10]
[363702901,1748826643633,-153.02,0.000237,31]
[363702902,1748826643642,-153.02,0.000237,31]
[363702903,1748826643652,-153.02,0.000237,31]
[363702904,1748826643662,-153.02,0.000237,31]
[363702905,1748826643671,-153.02,0.000237,31]
[363702906,1748826643681,-153.02,0.000237,31]
[363702907,1748826643690,-153.02,0.000237,31]
[363702908,1748826643700,-9308.72856309,0.000237,2]
[363702910,1748826643711,-165.87319625,0.000237,2]
[363702912,1748826643721,-160.0,0.0002375,5]
[363702913,1748826643730,-800.0,0.0002378,2]
[363702914,1748826643740,-160.0,0.00023799,2]
[363702915,1748826643750,-11820.10450434,0.000238,3]
[363702916,1748826643760,-51791.74353659,0.000238,2]
[363702917,1748826643769,-2000.0,0.000238,2]
[363702918,1748826643779,-151.0,0.000238,7]
[363702919,1748826643788,-259.173962,0.000238,7]
[363702920,1748826643798,-222.083795,0.000238,7]
[363702921,1748826643808,-455.39,0.000238,2]
[363702922,1748826643818,-290.95988051,0.000238,2]
[363702923,1748826643828,-328862.29096744,0.000238,2]
[363702924,1748826643838,-151.0,0.000238,7]
[363702925,1748826643848,-151.0,0.000238,7]
[363702926,1748826643857,-151.0,0.000238,7]
[363702927,1748826643867,-151.0,0.000238,7]
[363702928,1748826643877,-151.0,0.000238,7]
[363702929,1748826643887,-151.0,0.000238,7]
[363702930,1748826643896,-17458.82,0.000238,2]
[363702931,1748826643906,-151.0,0.000238,10]
[363702932,1748826643916,-151.0,0.000238,9]
[363702933,1748826643927,-151.0,0.000238,8]
[363702934,1748826643937,-151.0,0.000238,7]
[363702935,1748826643946,-102865.62,0.000238,7]
[363702936,1748826643961,-151.0,0.000238,7]
[363702937,1748826643970,-151.0,0.000238,7]
[363702938,1748826643983,-151.0,0.000238,7]
[363702939,1748826643995,-2000.0,0.000238,2]
[363702940,1748826644005,-151.0,0.000238,5]
[363702941,1748826644015,-151.0,0.000238,6]
[363702942,1748826644024,-151.0,0.000238,6]
[363702943,1748826644033,-151.0,0.000238,10]
[363702944,1748826644043,-151.0,0.000238,10]
[363702945,1748826644054,-151.0,0.000238,6]
[363702946,1748826644063,-160.0,0.000238,3]
[363702947,1748826644073,-151.0,0.000238,7]
[363702948,1748826644083,-151.0,0.000238,7]
[363702949,1748826644093,-500.0,0.000238,9]
[363702950,1748826644103,-187.043516,0.000238,7]
[363702951,1748826644113,-187.043516,0.000238,7]
[363702952,1748826644123,-187.043516,0.000238,7]
[363702953,1748826644133,-187.043516,0.000238,7]
[363702954,1748826644143,-151.0,0.000238,7]
[363702955,1748826644152,-153.726764,0.000238,7]
[363702956,1748826644162,-151.0,0.000238,7]
[363702957,1748826644172,-151.0,0.000238,7]
[363702958,1748826644182,-189.730191,0.000238,7]
[363702959,1748826644192,-151.0,0.000238,7]
[363702960,1748826644201,-151.0,0.000238,7]
[363702961,1748826644212,-518216.90347777,0.000238,7]
[363702962,1748826644335,-151.0,0.00023486,7]
[363702963,1748826644344,-3385.86936193,0.000238,7]
[363702964,1748826644359,-1525.95389307,0.000238,7]
[363702965,1748826644475,-0.02099767,0.000238,7]
[363702966,1748826644629,-430.0,0.00016587,2]
[363702967,1748826644641,-430.0,0.00016861,2]
[363702968,1748826644650,-430.0,0.00017135,2]
[363702969,1748826644660,-430.0,0.00017409,2]
[363702970,1748826644669,-430.0,0.00017683,2]
[363702971,1748826644678,-229.3709046,0.00023,3]
[363702972,1748826644688,-10441.60754626,0.000238,7]
[363702973,1748826644703,-109537.43427959,0.000238,7]
[363702974,1748826644712,-11820.44558081,0.000238,7]
[363702977,1748826806859,3094.8351293,0.00024649,120]
[363702979,1748826933515,4447.54124808,0.000246,120]
[363702980,1748827139325,300.0,0.00024657,120]
[363702982,1748827212227,253.341996,0.00013699,2]
[363702986,1748827549412,221.13,0.0001552,2]
[363702991,1748827594975,-175.29,0.00015773,2]
[363702992,1748827598311,-276.49783186,0.00015773,2]
[363702994,1748827600591,-207.70455589,0.00015773,2]
[363702995,1748827602697,-335.09127445,0.00015773,2]
[363702996,1748827605567,-277.44180626,0.00015773,2]
[363702997,1748827608748,-162.77430179,0.00015773,2]
[363702998,1748827610820,-177.74579025,0.00015773,2]
[363702999,1748827612830,-236.55050028,0.00015773,2]
[363703000,1748827614232,-231.03253923,0.00015773,2]
[363703001,1748827615797,-155.3670742,0.00015773,2]
[363703002,1748827617900,-300.0,0.00015773,2]
[363703065,1748827832210,-5000.0,0.00017368,2]
[363703066,1748827832221,-175.43230866,0.000177,2]
[363703067,1748827832230,-206.0,0.00017798,2]
[363703068,1748827832240,-300.0,0.00017798,2]
[363703069,1748827832250,-232.0,0.00017798,2]
[363703070,1748827832260,-231.02883716,0.00017799,2]
[363703071,1748827832271,-300.0,0.00017799,2]
[363703072,1748827832280,-430.0,0.00017799,2]
[363703073,1748827832289,-173.3,0.00017799,2]
[363703074,1748827832299,-430.0,0.00017799,2]
[363703075,1748827832308,-430.0,0.00017799,2]
[363703076,1748827832318,-430.0,0.00017799,2]
[363703077,1748827832328,-330.60566109,0.00017799,2]
[363703078,1748827832338,-262.53978705,0.00017799,2]
[363703079,1748827832348,-400.0,0.00017799,2]
[363703080,1748827832358,-430.0,0.00017799,2]
[363703081,1748827832368,-430.0,0.00017799,2]
[363703082,1748827832378,-430.0,0.00017799,2]
[363703083,1748827832388,-430.0,0.00017799,2]
[363703084,1748827832398,-430.0,0.00017799,2]
[363703085,1748827832407,-505.49704574,0.00017799,2]
[363703086,1748827832416,-401.61886442,0.00017799,2]
[363703087,1748827832427,-430.0,0.00017799,2]
[363703088,1748827832437,-430.0,0.00017799,2]
[363703089,1748827832447,-430.0,0.00017799,2]
[363703090,1748827832456,-430.0,0.00017799,2]
[363703091,1748827832466,-430.0,0.00017799,2]
[363703092,1748827832477,-430.0,0.00017799,2]
[363703093,1748827832487,-430.0,0.00017799,2]
[363703094,1748827832497,-430.0,0.00017799,2]
[363703095,1748827832506,-430.0,0.00017799,2]
[363703096,1748827832516,-430.0,0.00017799,2]
[363703097,1748827832526,-278.5807969,0.00017799,2]
[363703125,1748827838088,-374.25,0.00017655,2]
[363703126,1748827838098,-151.4192031,0.00017799,2]
[363703127,1748827838108,-438.51745083,0.00017799,2]
[363703128,1748827838118,-430.0,0.00017799,2]
[363703129,1748827838129,-448.14736612,0.00017799,2]
[363703130,1748827838138,-438.27760618,0.00017799,2]
[363703131,1748827838148,-430.0,0.00017799,2]
[363703132,1748827838157,-430.0,0.00017799,2]
[363703133,1748827838167,-435.94408642,0.00017799,2]
[363703134,1748827838177,-461.88822559,0.00017799,2]
[363703135,1748827838186,-468.08164381,0.00017799,2]
[363703136,1748827838197,-312.29202679,0.00017799,2]
[363703138,1748827838207,-500.0,0.00017799,2]
[363703139,1748827838216,-500.0,0.00017799,2]
[363703140,1748827838226,-382.36719177,0.00017799,2]
[363703141,1748827838236,-520.16344754,0.00017799,2]
[363703142,1748827838246,-500.0,0.00017799,2]
[363703143,1748827838258,-500.0,0.00017799,2]
[363703144,1748827838267,-500.0,0.00017799,2]
[363703145,1748827838277,-500.0,0.00017799,2]
[363703146,1748827838287,-500.0,0.00017799,2]
[363703147,1748827838296,-500.0,0.00017799,2]
[363703148,1748827838306,-500.0,0.00017799,2]
[363703149,1748827838315,-331.74616006,0.00017799,2]
[363703150,1748827838325,-500.0,0.00017799,2]
[363703151,1748827838335,-500.0,0.00017799,2]
[363703152,1748827838344,-500.0,0.00017799,2]
[363703153,1748827838354,-500.0,0.00017799,2]
[363703154,1748827838363,-500.0,0.00017799,2]
[363703155,1748827838372,-500.0,0.00017799,2]
[363703156,1748827838381,-500.0,0.00017799,2]
[363703157,1748827838390,-471.57425222,0.00017799,2]
[363703158,1748827838399,-500.0,0.00017799,2]
[363703159,1748827838409,-500.0,0.00017799,2]
[363703160,1748827838418,-500.0,0.00017799,2]
[363703161,1748827838428,-500.0,0.00017799,2]
[363703162,1748827838437,-500.0,0.00017799,2]
[363703163,1748827838446,-500.0,0.00017799,2]
[363703164,1748827838455,-500.0,0.00017799,2]
[363703165,1748827838464,-500.0,0.00017799,2]
[363703166,1748827838473,-500.0,0.00017799,2]
[363703167,1748827838483,-500.0,0.00017799,2]
[363703168,1748827838492,-571.19053971,0.00017799,2]
[363703169,1748827838503,-500.0,0.00017799,2]
[363703170,1748827838512,-500.0,0.00017799,2]
[363703171,1748827838521,-500.0,0.00017799,2]
[363703172,1748827838531,-500.0,0.00017799,2]
[363703173,1748827838542,-500.0,0.00017799,2]
[363703174,1748827838557,-500.0,0.00017799,2]
[363703175,1748827838567,-500.0,0.00017799,2]
[363703176,1748827838576,-500.0,0.00017799,2]
[363703177,1748827838586,-500.0,0.00017799,2]
[363703178,1748827838596,-430.0,0.000178,2]
[363703179,1748827838609,-430.0,0.000178,2]
[363703180,1748827838619,-315.55,0.000178,2]
[363703181,1748827838629,-430.0,0.000178,2]
[363703182,1748827838638,-430.0,0.000178,2]
[363703183,1748827838649,-430.0,0.000178,2]
[363703184,1748827838659,-477.73883953,0.000178,2]
[363703185,1748827838668,-430.0,0.000178,2]
[363703186,1748827838678,-430.0,0.000178,2]
[363703187,1748827838688,-430.0,0.000178,2]
[363703188,1748827838698,-430.0,0.000178,2]
[363703189,1748827838707,-430.0,0.000178,2]
[363703190,1748827838717,-430.0,0.000178,2]
[363703192,1748827838726,-430.0,0.000178,2]
[363703193,1748827838736,-430.0,0.000178,2]
[363703194,1748827838746,-430.0,0.000178,2]
[363703195,1748827838756,-430.0,0.000178,2]
[363703196,1748827838766,-430.0,0.000178,2]
[363703197,1748827838775,-430.0,0.000178,2]
[363703198,1748827838785,-430.0,0.000178,2]
[363703199,1748827838794,-430.0,0.000178,2]
[363703200,1748827838803,-430.0,0.000178,2]
[363703201,1748827838812,-430.0,0.000178,2]
[363703202,1748827838822,-430.0,0.000178,2]
[363703203,1748827838831,-496.45444101,0.000178,2]
[363703204,1748827838840,-430.0,0.000178,2]
[363703205,1748827838850,-503.28,0.000178,2]
[363703206,1748827838859,-566.6,0.000178,2]
[363703207,1748827838868,-430.0,0.000178,2]
[363703208,1748827838879,-430.0,0.000178,2]
[363703209,1748827838888,-430.0,0.000178,2]
[363703210,1748827838898,-452.17440071,0.000178,2]
[363703211,1748827838909,-430.0,0.000178,2]
[363703212,1748827838919,-254.55649642,0.000178,2]
[363703213,1748827838929,-24900.0,0.00017801,2]
[363703214,1748827838938,-430.0,0.00018073,2]
[363703215,1748827838948,-341.78112797,0.00018073,2]
[363703216,1748827838958,-430.0,0.00018073,2]
[363703217,1748827838968,-430.0,0.00018073,2]
[363703218,1748827838978,-430.0,0.00018073,2]
[363703219,1748827838987,-430.0,0.00018073,2]
[363703220,1748827838997,-430.0,0.00018073,2]
[363703221,1748827839008,-430.0,0.00018073,2]
[363703222,1748827839018,-430.0,0.00018073,2]
[363703223,1748827839028,-430.0,0.00018073,2]
[363703224,1748827839038,-417.23876007,0.00018073,2]
[363703225,1748827839047,-201.32746498,0.00018073,2]
[363703226,1748827839058,-430.0,0.00018074,2]
[363703227,1748827839067,-430.0,0.00018074,2]
[363703228,1748827839077,-430.0,0.00018074,2]
[363703229,1748827839086,-313.1,0.00018074,2]
[363703230,1748827839096,-430.0,0.00018074,2]
[363703231,1748827839109,-430.0,0.00018074,2]
[363703232,1748827839119,-430.0,0.00018074,2]
[363703233,1748827839128,-430.0,0.00018074,2]
[363703234,1748827839138,-430.0,0.00018074,2]
[363703235,1748827839147,-430.0,0.00018074,2]
[363703236,1748827839157,-469.89,0.00018074,2]
[363703237,1748827839167,-430.0,0.00018074,2]
[363703238,1748827839178,-425.05,0.00018074,2]
[363703239,1748827839190,-552.88,0.00018074,2]
[363703240,1748827839199,-430.0,0.00018074,2]
[363703241,1748827839209,-430.0,0.00018074,2]
[363703242,1748827839219,-430.0,0.00018074,2]
[363703243,1748827839229,-152.0,0.00018251,2]
[363703244,1748827839238,-281.65,0.00018347,2]
[363703245,1748827839248,-430.0,0.00018347,2]
[363703246,1748827839269,-430.0,0.00018347,2]
[363703247,1748827839282,-430.0,0.00018347,2]
[363703248,1748827839298,-430.0,0.00018347,2]
[363703249,1748827839308,-430.0,0.00018347,2]